fUSD/lending_fUSD_20250606
["ID","MTS","AMOUNT","RATE_DAILY","PERIOD"]
[364656084,1749185449021,-1131.767971,0.00030164,7]
[364656085,1749185449031,-600.0,0.00030164,30]
[364656086,1749185449041,-1131.767971,0.00030164,7]
[364656087,1749185449051,-1131.767971,0.00030164,7]
[364656088,1749185449061,-151.0,0.00030164,7]
[364656089,1749185449071,-1131.767971,0.00030164,7]
[364656090,1749185449081,-151.0,0.00030164,7]
[364656091,1749185449092,-1131.767971,0.00030164,7]
[364656092,1749185449102,-480.0,0.00030164,7]
[364656093,1749185449112,-151.0,0.00030164,7]
[364656094,1749185449122,-326.78020907,0.00030164,7]
[364656095,1749185449132,-1131.767971,0.00030164,7]
[364656096,1749185449141,-1131.767971,0.00030164,7]
[364656097,1749185449151,-5363.425506,0.00030164,7]
[364656098,1749185449161,-1131.767971,0.00030164,7]
[364656099,1749185449171,-5363.425506,0.00030164,7]
[364656100,1749185449181,-1131.767971,0.00030164,7]
[364656101,1749185449190,-5363.425506,0.00030164,7]
[364656102,1749185449200,-1131.767971,0.00030164,7]
[364656103,1749185449210,-5363.425506,0.00030164,7]
[364656104,1749185449220,-5363.425506,0.00030164,7]
[364656105,1749185449231,-480.0,0.00030164,7]
[364656106,1749185449241,-503.88846495,0.00030164,7]
[364656107,1749185449251,-5363.425506,0.00030164,7]
[364656108,1749185449262,-5363.425506,0.00030164,7]
[364656109,1749185449273,-484.5866159,0.00030164,7]
[364656110,1749185449283,-5363.425506,0.00030164,7]
[364656111,1749185449293,-5363.425506,0.00030164,7]
[364656112,1749185449303,-5363.425506,0.00030164,7]
[364656113,1749185449313,-480.0,0.00030164,7]
[364656114,1749185449323,-484.28248514,0.00030164,7]
[364656115,1749185449333,-500.0,0.00030164,7]
[364656116,1749185449344,-500.0,0.00030164,7]
[364656117,1749185449353,-480.0,0.00030164,7]
[364656118,1749185449363,-771.45,0.00030164,7]
[364656119,1749185449373,-480.0,0.00030164,7]
[364656120,1749185449383,-480.0,0.00030164,7]
[364656121,1749185449393,-480.0,0.00030164,7]
[364656122,1749185449403,-480.0,0.00030164,7]
[364656123,1749185449412,-480.0,0.00030164,7]
[364656124,1749185449422,-480.0,0.00030164,7]
[364656125,1749185449432,-480.0,0.00030164,7]
[364656126,1749185449442,-480.0,0.00030164,7]
[364656127,1749185449452,-480.0,0.00030164,7]
[364656128,1749185449461,-480.0,0.00030164,7]
[364656129,1749185449471,-470.10925757,0.00030164,7]
[364656130,1749185449481,-151.0,0.00030164,7]
[364656131,1749185449491,-151.0,0.00030164,7]
[364656132,1749185449501,-480.0,0.00030164,7]
[364656133,1749185449511,-151.0,0.00030164,7]
[364656134,1749185449522,-151.0,0.00030164,7]
[364656135,1749185449531,-222.330477,0.00030164,7]
[364656136,1749185449541,-257.33371585,0.00030164,7]
[364656137,1749185449551,-480.0,0.00030164,7]
[364656138,1749185449561,-1525.68,0.00030164,7]
[364656139,1749185449570,-489.6966209,0.00030164,7]
[364656140,1749185449580,-480.0,0.00030164,7]
[364656141,1749185449590,-151.0,0.00030164,7]
[364656142,1749185449602,-480.0,0.00030164,7]
[364656143,1749185449612,-151.0,0.00030164,7]
[364656144,1749185449621,-502.097597,0.00030164,7]
[364656145,1749185449631,-151.0,0.00030164,7]
[364656146,1749185449642,-502.097597,0.00030164,7]
[364656147,1749185449652,-502.097597,0.00030164,7]
[364656148,1749185449663,-480.0,0.00030164,7]
[364656149,1749185449674,-205.65349151,0.00030164,7]
[364656150,1749185449684,-480.0,0.00030164,7]
[364656151,1749185449694,-480.0,0.00030164,7]
[364656152,1749185449704,-480.0,0.00030164,7]
[364656153,1749185449713,-151.0,0.00030164,7]
[364656154,1749185449724,-151.0,0.00030164,7]
[364656155,1749185449734,-151.0,0.00030164,7]
[364656156,1749185449745,-151.0,0.00030164,7]
[364656157,1749185449755,-480.0,0.00030164,7]
[364656158,1749185449764,-151.0,0.00030164,7]
[364656159,1749185449774,-480.0,0.00030164,7]
[364656160,1749185449784,-480.0,0.00030164,7]
[364656161,1749185449798,-500.0,0.00030164,7]
[364656162,1749185449807,-500.0,0.00030164,7]
[364656163,1749185449818,-500.0,0.00030164,7]
[364656164,1749185449827,-500.0,0.00030164,7]
[364656165,1749185449838,-500.0,0.00030164,7]
[364656166,1749185449847,-500.0,0.00030164,7]
[364656167,1749185449858,-500.0,0.00030164,7]
[364656168,1749185449868,-500.0,0.00030164,7]
[364656169,1749185449878,-500.0,0.00030164,7]
[364656170,1749185449887,-500.0,0.00030164,7]
[364656171,1749185449897,-488.90341359,0.00030164,7]
[364656172,1749185449907,-480.0,0.00030164,7]
[364656173,1749185449917,-480.0,0.00030164,7]
[364656174,1749185449928,-480.0,0.00030164,7]
[364656175,1749185449938,-483.60211199,0.00030164,7]
[364656176,1749185449948,-480.0,0.00030164,7]
[364656177,1749185449958,-480.0,0.00030164,7]
[364656178,1749185449967,-480.0,0.00030164,7]
[364656179,1749185449977,-480.0,0.00030164,7]
[364656180,1749185449988,-484.09096895,0.00030164,7]
[364656181,1749185449997,-843.88,0.00030164,7]
[364656182,1749185450008,-480.0,0.00030164,7]
[364656183,1749185450018,-480.0,0.00030164,7]
[364656184,1749185450028,-480.0,0.00030164,7]
[364656185,1749185450039,-480.0,0.00030164,7]
[364656186,1749185450049,-480.0,0.00030164,7]
[364656187,1749185450059,-151.0,0.00030164,7]
[364656188,1749185450068,-151.0,0.00030164,7]
[364656189,1749185450078,-151.0,0.00030164,7]
[364656190,1749185450088,-480.0,0.00030164,7]
[364656191,1749185450098,-480.0,0.00030164,7]
[364656192,1749185450108,-151.0,0.00030164,7]
[364656193,1749185450120,-157.107345,0.00030164,7]
[364656194,1749185450130,-480.0,0.00030164,7]
[364656195,1749185450140,-480.0,0.00030164,7]
[364656196,1749185450150,-480.0,0.00030164,7]
[364656197,1749185450160,-152.060502,0.00030164,7]
[364656198,1749185450170,-480.0,0.00030164,7]
[364656199,1749185450180,-480.0,0.00030164,7]
[364656200,1749185450190,-480.0,0.00030164,7]
[364656201,1749185450200,-532.09,0.00030164,7]
[364656202,1749185450210,-827.584372,0.00030164,7]
[364656203,1749185450220,-480.43663519,0.00030164,7]
[364656204,1749185450231,-827.584372,0.00030164,7]
[364656205,1749185450242,-827.584372,0.00030164,7]
[364656206,1749185450251,-827.584372,0.00030164,7]
[364656207,1749185450261,-827.584372,0.00030164,7]
[364656208,1749185450271,-827.584372,0.00030164,7]
[364656209,1749185450281,-480.0,0.00030164,7]
[364656210,1749185450291,-827.584372,0.00030164,7]
[364656211,1749185450301,-827.584372,0.00030164,7]
[364656212,1749185450311,-480.0,0.00030164,7]
[364656213,1749185450321,-827.584372,0.00030164,7]
[364656214,1749185450332,-827.584372,0.00030164,7]
[364656215,1749185450342,-480.0,0.00030164,7]
[364656216,1749185450352,-480.0,0.00030164,7]
[364656217,1749185450362,-482.017629,0.00030164,7]
[364656218,1749185450371,-515.0579445,0.00030164,7]
[364656219,1749185450381,-671.98,0.00030164,7]
[364656220,1749185450391,-480.0,0.00030164,7]
[364656221,1749185450400,-487.44013037,0.00030164,7]
[364656222,1749185450410,-480.0,0.00030164,7]
[364656223,1749185450420,-703.32,0.00030164,7]
[364656224,1749185450431,-419.20933824,0.00030164,7]
[364656225,1749185450441,-480.0,0.00030164,7]
[364656226,1749185450451,-932.89,0.00030164,7]
[364656227,1749185450461,-1106.93,0.00030164,7]
[364656228,1749185450471,-480.0,0.00030164,7]
[364656229,1749185450481,-480.0,0.00030164,7]
[364656230,1749185450492,-480.0,0.00030164,7]
[364656231,1749185450501,-420.0,0.00030164,7]
[364656232,1749185450512,-470.55415532,0.00030164,7]
[364656233,1749185450522,-1033.24,0.00030164,7]
[364656234,1749185450532,-693.39,0.00030164,7]
[364656235,1749185450542,-480.0,0.00030164,7]
[364656236,1749185450552,-480.0,0.00030164,7]
[364656237,1749185450562,-434.35842698,0.00030164,7]
[364656238,1749185450571,-480.0,0.00030164,7]
[364656239,1749185450582,-487.83162857,0.00030164,7]
[364656240,1749185450591,-480.0,0.00030164,7]
[364656241,1749185450605,-480.0,0.00030164,7]
[364656242,1749185450615,-480.0,0.00030164,7]
[364656243,1749185450626,-507.47543912,0.00030164,7]
[364656244,1749185450637,-480.0,0.00030164,7]
[364656245,1749185450647,-817.85,0.00030164,7]
[364656246,1749185450657,-480.0,0.00030164,7]
[364656247,1749185450667,-556.04,0.00030164,7]
[364656248,1749185450677,-1292.94,0.00030164,7]
[364656249,1749185450686,-443.47294183,0.00030164,7]
[364656250,1749185450696,-480.0,0.00030164,7]
[364656251,1749185450706,-480.0,0.00030164,7]
[364656252,1749185450716,-668.33,0.00030164,7]
[364656253,1749185450726,-480.0,0.00030164,7]
[364656254,1749185450736,-934.27,0.00030164,7]
[364656255,1749185450746,-464.30648307,0.00030164,7]
[364656256,1749185450756,-466.6031885,0.00030164,7]
[364656257,1749185450766,-482.77804812,0.00030164,7]
[364656258,1749185450775,-480.0,0.00030164,7]
[364656259,1749185450785,-600.0,0.00030164,2]
[364656260,1749185450795,-480.0,0.00030164,7]
[364656261,1749185450807,-480.0,0.00030164,7]
[364656262,1749185450817,-480.0,0.00030164,7]
[364656263,1749185450827,-480.0,0.00030164,7]
[364656264,1749185450837,-480.0,0.00030164,7]
[364656265,1749185450847,-480.0,0.00030164,7]
[364656266,1749185450857,-480.0,0.00030164,7]
[364656267,1749185450867,-480.0,0.00030164,7]
[364656268,1749185450877,-427.36215937,0.00030164,7]
[364656269,1749185450887,-480.0,0.00030164,7]
[364656270,1749185450896,-483.38149312,0.00030164,7]
[364656271,1749185450906,-905.44,0.00030164,7]
[364656272,1749185450916,-480.0,0.00030164,7]
[364656273,1749185450926,-480.0,0.00030164,7]
[364656274,1749185450936,-618.13316336,0.00030164,7]
[364656275,1749185450946,-480.0,0.00030164,7]
[364656276,1749185450955,-463.17201538,0.00030164,7]
[364656277,1749185450965,-480.0,0.00030164,7]
[364656278,1749185450975,-500.0,0.00030164,7]
[364656279,1749185450985,-1005.06598888,0.00030164,7]
[364656280,1749185450995,-500.0,0.00030164,7]
[364656281,1749185451004,-500.0,0.00030164,7]
[364656282,1749185451014,-480.0,0.00030164,7]
[364656283,1749185451024,-500.0,0.00030164,7]
[364656284,1749185451034,-578.69,0.00030164,7]
[364656285,1749185451044,-480.0,0.00030164,7]
[364656286,1749185451054,-428.50182905,0.00030164,7]
[364656287,1749185451064,-480.0,0.00030164,7]
[364656288,1749185451074,-462.15104041,0.00030164,7]
[364656289,1749185451164,-818.39,0.00030164,7]
[364656290,1749185451173,-519.4362092,0.00030164,7]
[364656291,1749185451183,-488.6972386,0.00030164,7]
[364656292,1749185451194,-480.0,0.00030164,7]
[364656293,1749185451203,-424.05378161,0.00030164,7]
[364656294,1749185451213,-480.0,0.00030164,7]
[364656295,1749185451222,-480.0,0.00030164,7]
[364656296,1749185451232,-462.1176797,0.00030164,7]
[364656297,1749185451243,-421.28293949,0.00030164,7]
[364656298,1749185451252,-480.0,0.00030164,7]
[364656299,1749185451262,-545.23912968,0.00030164,7]
[364656300,1749185451271,-627.85645931,0.00030164,7]
[364656301,1749185451281,-151.0,0.00030164,7]
[364656302,1749185451290,-480.0,0.00030164,7]
[364656303,1749185451301,-480.0,0.00030164,7]
[364656304,1749185451310,-151.0,0.00030164,7]
[364656305,1749185451320,-152.014466,0.00030164,7]
[364656306,1749185451329,-480.0,0.00030164,7]
[364656307,1749185451339,-151.0,0.00030164,7]
[364656308,1749185451348,-151.0,0.00030164,7]
[364656309,1749185451358,-480.0,0.00030164,7]
[364656310,1749185451368,-151.0,0.00030164,7]
[364656311,1749185451377,-493.36,0.00030164,7]
[364656312,1749185451387,-301.3664513,0.00030164,7]
[364656313,1749185451397,-480.0,0.00030164,7]
[364656314,1749185451407,-480.0,0.00030164,7]
[364656315,1749185451419,-774.42,0.00030164,7]
[364656316,1749185451428,-151.0,0.00030164,7]
[364656317,1749185451437,-596.66,0.00030164,7]
[364656318,1749185451446,-151.0,0.00030164,7]
[364656319,1749185451455,-458.6407208,0.00030164,7]
[364656320,1749185451464,-373.85584544,0.00030164,7]
[364656321,1749185451473,-151.0,0.00030164,7]
[364656322,1749185451483,-151.0,0.00030164,7]
[364656323,1749185451492,-151.0,0.00030164,7]
[364656324,1749185451502,-480.0,0.00030164,7]
[364656325,1749185451511,-568.69,0.00030164,7]
[364656326,1749185451521,-480.0,0.00030164,7]
[364656327,1749185451530,-517.49,0.00030164,7]
[364656328,1749185451539,-163.079821,0.00030164,7]
[364656329,1749185451548,-480.0,0.00030164,7]
[364656330,1749185451558,-480.0,0.00030164,7]
[364656331,1749185451566,-483.23743115,0.00030164,7]
[364656332,1749185451575,-480.0,0.00030164,7]
[364656333,1749185451584,-360.0,0.00030164,7]
[364656334,1749185451594,-487.97499973,0.00030164,7]
[364656335,1749185451607,-364.621522,0.00030164,7]
[364656336,1749185451616,-480.0,0.00030164,7]
[364656337,1749185451626,-364.621522,0.00030164,7]
[364656338,1749185451635,-364.621522,0.00030164,7]
[364656339,1749185451645,-151.0,0.00030164,7]
[364656340,1749185451655,-480.0,0.00030164,7]
[364656341,1749185451664,-480.0,0.00030164,7]
[364656342,1749185451674,-151.0,0.00030164,7]
[364656343,1749185451683,-364.621522,0.00030164,7]
[364656344,1749185451692,-151.0,0.00030164,7]
[364656345,1749185451701,-364.621522,0.00030164,7]
[364656346,1749185451710,-154.54021,0.00030164,7]
[364656347,1749185451719,-480.0,0.00030164,7]
[364656348,1749185451728,-480.0,0.00030164,7]
[364656349,1749185451738,-480.0,0.00030164,7]
[364656350,1749185451747,-936.43,0.00030164,7]
[364656351,1749185451756,-364.621522,0.00030164,7]
[364656352,1749185451765,-434.7448199,0.00030164,7]
[364656353,1749185451774,-364.621522,0.00030164,7]
[364656354,1749185451784,-426.57189992,0.00030164,7]
[364656355,1749185451793,-480.0,0.00030164,7]
[364656356,1749185451802,-364.621522,0.00030164,7]
[364656357,1749185451811,-480.0,0.00030164,7]
[364656358,1749185451821,-364.621522,0.00030164,7]
[364656359,1749185451830,-480.0,0.00030164,7]
[364656360,1749185451839,-338.504732,0.00030164,7]
[364656361,1749185451848,-364.621522,0.00030164,7]
[364656362,1749185451857,-558.21,0.00030164,7]
[364656363,1749185451866,-480.0,0.00030164,7]
[364656364,1749185451875,-338.504732,0.00030164,7]
[364656365,1749185451884,-480.0,0.00030164,7]
[364656366,1749185451893,-338.504732,0.00030164,7]
[364656367,1749185451902,-480.0,0.00030164,7]
[364656368,1749185451911,-338.504732,0.00030164,7]
[364656369,1749185451920,-338.504732,0.00030164,7]
[364656370,1749185451930,-480.0,0.00030164,7]
[364656371,1749185451939,-480.0,0.00030164,7]
[364656372,1749185451948,-338.504732,0.00030164,7]
[364656373,1749185451957,-338.504732,0.00030164,7]
[364656374,1749185451967,-480.0,0.00030164,7]
[364656375,1749185451976,-338.504732,0.00030164,7]
[364656376,1749185451984,-338.504732,0.00030164,7]
[364656377,1749185451995,-1131.714475,0.00030164,7]
[364656378,1749185452004,-338.504732,0.00030164,7]
[364656379,1749185452014,-1131.714475,0.00030164,7]
[364656380,1749185452023,-1131.714475,0.00030164,7]
[364656381,1749185452033,-681.37,0.00030164,7]
[364656382,1749185452042,-1131.714475,0.00030164,7]
[364656383,1749185452052,-1131.714475,0.00030164,7]
[364656384,1749185452062,-480.0,0.00030164,7]
[364656385,1749185452071,-480.0,0.00030164,7]
[364656386,1749185452080,-480.0,0.00030164,7]
[364656387,1749185452090,-485.82490159,0.00030164,7]
[364656388,1749185452099,-151.0,0.00030164,2]
[364656389,1749185452108,-496.79,0.00030164,7]
[364656390,1749185452119,-1131.714475,0.00030164,7]
[364656391,1749185452129,-151.0,0.00030164,2]
[364656392,1749185452138,-1131.714475,0.00030164,7]
[364656393,1749185452147,-1131.714475,0.00030164,7]
[364656394,1749185452158,-480.0,0.00030164,7]
[364656395,1749185452167,-151.0,0.00030164,2]
[364656396,1749185452177,-480.0,0.00030164,7]
[364656397,1749185452186,-551.123367,0.00030164,7]
[364656398,1749185452196,-1131.714475,0.00030164,7]
[364656399,1749185452206,-480.0,0.00030164,7]
[364656400,1749185452215,-551.123367,0.00030164,7]
[364656401,1749185452225,-151.0,0.00030164,2]
[364656402,1749185452235,-1131.714475,0.00030164,7]
[364656403,1749185452245,-551.123367,0.00030164,7]
[364656404,1749185452255,-151.0,0.00030164,2]
[364656405,1749185452264,-551.123367,0.00030164,7]
[364656406,1749185452274,-480.0,0.00030164,7]
[364656407,1749185452283,-480.0,0.00030164,7]
[364656408,1749185452292,-494.53481212,0.00030164,7]
[364656409,1749185452302,-480.0,0.00030164,7]
[364656410,1749185452312,-551.123367,0.00030164,7]
[364656411,1749185452321,-151.0,0.00030164,2]
[364656412,1749185452331,-151.0,0.00030164,2]
[364656413,1749185452340,-151.0,0.00030164,2]
[364656414,1749185452349,-480.0,0.00030164,7]
[364656415,1749185452359,-192.266225,0.00030164,2]
[364656416,1749185452368,-480.0,0.00030164,7]
[364656417,1749185452377,-480.0,0.00030164,7]
[364656418,1749185452386,-551.123367,0.00030164,7]
[364656419,1749185452395,-480.0,0.00030164,7]
[364656420,1749185452404,-551.123367,0.00030164,7]
[364656421,1749185452414,-151.0,0.00030164,7]
[364656422,1749185452424,-336.52710451,0.00030164,7]
[364656423,1749185452433,-527.28,0.00030164,7]
[364656424,1749185452442,-551.123367,0.00030164,7]
[364656425,1749185452452,-480.0,0.00030164,7]
[364656426,1749185452461,-151.0,0.00030164,7]
[364656427,1749185452471,-551.123367,0.00030164,7]
[364656428,1749185452480,-480.0,0.00030164,7]
[364656429,1749185452490,-151.0,0.00030164,7]
[364656430,1749185452499,-551.123367,0.00030164,7]
[364656431,1749185452509,-571.12,0.00030164,7]
[364656432,1749185452519,-483.65379285,0.00030164,7]
[364656433,1749185452528,-480.0,0.00030164,7]
[364656434,1749185452538,-480.0,0.00030164,7]
[364656435,1749185452547,-480.0,0.00030164,7]
[364656436,1749185452556,-647.83,0.00030164,7]
[364656437,1749185452566,-151.0,0.00030164,7]
[364656438,1749185452576,-370.26493977,0.00030164,7]
[364656439,1749185452584,-480.0,0.00030164,7]
[364656440,1749185452594,-151.0,0.00030164,7]
[364656441,1749185452608,-285.445935,0.00030164,7]
[364656442,1749185452618,-480.0,0.00030164,7]
[364656443,1749185452628,-480.0,0.00030164,7]
[364656444,1749185452637,-357.83408628,0.00030164,7]
[364656445,1749185452646,-480.0,0.00030164,7]
[364656446,1749185452656,-480.0,0.00030164,7]
[364656447,1749185452665,-480.0,0.00030164,2]
[364656448,1749185452675,-482.7978479,0.00030164,7]
[364656449,1749185452684,-984.67,0.00030164,7]
[364656450,1749185452693,-480.0,0.00030164,7]
[364656451,1749185452702,-480.0,0.00030164,7]
[364656452,1749185452712,-429.39492447,0.00030164,7]
[364656453,1749185452722,-1040.43,0.00030164,7]
[364656454,1749185452731,-480.0,0.00030164,7]
[364656455,1749185452741,-480.0,0.00030164,7]
[364656456,1749185452750,-480.0,0.00030164,7]
[364656457,1749185452759,-433.26244758,0.00030164,7]
[364656458,1749185452769,-480.0,0.00030164,7]
[364656459,1749185452778,-480.0,0.00030164,7]
[364656460,1749185452787,-718.55,0.00030164,7]
[364656461,1749185452796,-480.0,0.00030164,7]
[364656462,1749185452806,-482.18080561,0.00030164,7]
[364656463,1749185452815,-480.0,0.00030164,7]
[364656464,1749185452825,-480.0,0.00030164,7]
[364656465,1749185452834,-996.33,0.00030164,7]
[364656466,1749185452843,-480.0,0.00030164,7]
[364656467,1749185452853,-483.31580638,0.00030164,7]
[364656468,1749185452862,-480.0,0.00030164,7]
[364656469,1749185452872,-480.0,0.00030164,7]
[364656470,1749185452881,-196.58725767,0.00030164,7]
[364656471,1749185452890,-480.0,0.00030164,7]
[364656472,1749185452899,-1305.61,0.00030164,7]
[364656473,1749185452908,-480.0,0.00030164,7]
[364656474,1749185452918,-480.0,0.00030164,7]
[364656475,1749185452927,-480.0,0.00030164,7]
[364656476,1749185452936,-841.99,0.00030164,7]
[364656477,1749185452946,-491.32245126,0.00030164,7]
[364656478,1749185452955,-1438.35,0.00030164,7]
[364656479,1749185452964,-480.0,0.00030164,7]
[364656480,1749185452974,-480.0,0.00030164,7]
[364656481,1749185452983,-480.0,0.00030164,7]
[364656482,1749185452993,-151.0,0.00030164,7]
[364656483,1749185453002,-151.0,0.00030164,7]
[364656484,1749185453011,-151.0,0.00030164,7]
[364656485,1749185453021,-480.0,0.00030164,7]
[364656486,1749185453030,-1662.34,0.00030164,7]
[364656487,1749185453039,-481.79838109,0.00030164,7]
[364656488,1749185453049,-151.0,0.00030164,7]
[364656489,1749185453058,-151.0,0.00030164,7]
[364656490,1749185453067,-480.0,0.00030164,7]
[364656491,1749185453077,-480.0,0.00030164,7]
[364656492,1749185453086,-480.0,0.00030164,7]
[364656493,1749185453097,-436.16033311,0.00030164,7]
[364656494,1749185453107,-480.0,0.00030164,7]
[364656495,1749185453116,-151.0,0.00030164,7]
[364656496,1749185453125,-151.0,0.00030164,7]
[364656497,1749185453135,-151.0,0.00030164,7]
[364656498,1749185453144,-480.0,0.00030164,2]
[364656499,1749185453153,-480.0,0.00030164,7]
[364656500,1749185453163,-155.137648,0.00030164,7]
[364656501,1749185453172,-480.0,0.00030164,7]
[364656502,1749185453181,-497.16955935,0.00030164,7]
[364656503,1749185453191,-1155.95,0.00030164,7]
[364656504,1749185453201,-197.231796,0.00030164,7]
[364656505,1749185453210,-197.231796,0.00030164,7]
[364656506,1749185453219,-480.0,0.00030164,7]
[364656507,1749185453229,-197.231796,0.00030164,7]
[364656508,1749185453238,-197.231796,0.00030164,7]
[364656509,1749185453248,-197.231796,0.00030164,7]
[364656510,1749185453257,-480.0,0.00030164,7]
[364656511,1749185453266,-480.0,0.00030164,7]
[364656512,1749185453277,-480.0,0.00030164,7]
[364656513,1749185453286,-480.0,0.00030164,7]
[364656514,1749185453296,-480.0,0.00030164,7]
[364656515,1749185453305,-483.26868124,0.00030164,7]
[364656516,1749185453315,-197.231796,0.00030164,7]
[364656517,1749185453325,-185.7570599,0.00030164,7]
[364656518,1749185453335,-197.231796,0.00030164,7]
[364656519,1749185453344,-480.0,0.00030164,7]
[364656520,1749185453353,-197.231796,0.00030164,7]
[364656521,1749185453363,-480.0,0.00030164,7]
[364656522,1749185453372,-197.231796,0.00030164,7]
[364656523,1749185453381,-480.0,0.00030164,7]
[364656524,1749185453391,-197.231796,0.00030164,7]
[364656525,1749185453401,-1051.21,0.00030164,7]
[364656526,1749185453411,-810.92,0.00030164,7]
[364656527,1749185453627,-472.09909013,0.00030164,7]
[364656528,1749185453637,-500.0,0.00030164,7]
[364656529,1749185453648,-480.0,0.00030164,7]
[364656530,1749185453658,-480.0,0.00030164,7]
[364656531,1749185453667,-428.23911143,0.00030164,7]
[364656532,1749185453679,-420.0,0.00030164,7]
[364656533,1749185453689,-480.0,0.00030164,7]
[364656534,1749185453699,-261.51976516,0.00030164,7]
[364656535,1749185453708,-365.30662621,0.00030164,7]
[364656536,1749185453718,-1646.0,0.00030164,7]
[364656537,1749185453727,-898.42,0.00030164,7]
[364656538,1749185453737,-849.63,0.00030164,7]
[364656539,1749185453746,-482.71181895,0.00030164,7]
[364656540,1749185453756,-480.0,0.00030164,7]
[364656541,1749185453765,-480.0,0.00030164,7]
[364656542,1749185453775,-513.11890785,0.00030164,7]
[364656543,1749185453784,-388.32677842,0.00030164,7]
[364656544,1749185453793,-480.0,0.00030164,7]
[364656545,1749185453803,-500.0,0.00030164,7]
[364656546,1749185453812,-408.83626208,0.00030164,7]
[364656547,1749185453821,-768.34,0.00030164,7]
[364656548,1749185453831,-422.8077953,0.00030164,7]
[364656549,1749185453840,-480.0,0.00030164,7]
[364656550,1749185453849,-500.0,0.00030164,7]
[364656551,1749185453859,-480.0,0.00030164,7]
[364656552,1749185453868,-500.0,0.00030164,7]
[364656553,1749185453877,-500.0,0.00030164,7]
[364656554,1749185453887,-500.0,0.00030164,7]
[364656555,1749185453896,-704.327033,0.00030164,7]
[364656556,1749185453905,-449.50438927,0.00030164,7]
[364656557,1749185453914,-704.327033,0.00030164,7]
[364656558,1749185453923,-704.327033,0.00030164,7]
[364656559,1749185453932,-480.0,0.00030164,7]
[364656560,1749185453941,-480.0,0.00030164,7]
[364656561,1749185453950,-704.327033,0.00030164,7]
[364656562,1749185453960,-704.327033,0.00030164,7]
[364656563,1749185453969,-480.0,0.00030164,7]
[364656564,1749185453979,-151.0,0.00030164,7]
[364656565,1749185453988,-480.0,0.00030164,7]
[364656566,1749185453997,-380.14017578,0.00030164,7]
[364656567,1749185454007,-151.0,0.00030164,7]
[364656568,1749185454016,-590.79,0.00030164,7]
[364656569,1749185454025,-151.0,0.00030164,7]
[364656570,1749185454035,-480.0,0.00030164,7]
[364656571,1749185454043,-151.0,0.00030164,7]
[364656572,1749185454053,-480.0,0.00030164,7]
[364656573,1749185454062,-480.0,0.00030164,7]
[364656574,1749185454071,-151.0,0.00030164,7]
[364656575,1749185454080,-420.0,0.00030164,7]
[364656576,1749185454090,-480.0,0.00030164,7]
[364656577,1749185454100,-704.327033,0.00030164,7]
[364656578,1749185454110,-1352.96,0.00030164,7]
[364656579,1749185454119,-150.0,0.00030164,7]
[364656580,1749185454129,-704.327033,0.00030164,7]
[364656581,1749185454138,-704.327033,0.00030164,7]
[364656582,1749185454148,-704.327033,0.00030164,7]
[364656583,1749185454158,-480.0,0.00030164,7]